[Event "Romanian Rapid Open 2022"]
[Site "Sebes"]
[Date "2022.12.02"]
[Round "4.34"]
[White "Berescu, Alin-Mile"]
[Black "Tariceanu, Victor"]
[Result "0-1"]
[ECO "B04"]
[WhiteElo "2429"]
[BlackElo "1720"]
[Annotator "TA"]
[PlyCount "155"]
[EventDate "2022.12.02"]
[EventType "rapid"]
[EventCountry "ROU"]
[SourceTitle "playchess.com"]
[Source "ChessBase"]
[SourceQuality "1"]
[TimeControl "600+5"]

{[%evp 13,155,22,44,41,44,29,52,41,49,19,17,8,31,19,22,23,21,0,39,7,20,0,6,0,25,12,32,20,77,57,82,2,84,36,93,54,96,41,90,95,189,179,160,160,298,107,176,60,55,58,68,67,89,89,93,106,90,83,77,97,115,99,100,102,95,104,97,96,96,98,125,127,135,132,278,262,275,260,267,237,264,147,191,182,195,175,164,122,97,102,86,17,16,8,8,8,8,8,8,8,8,0,8,5,6,7,8,8,8,8,18,0,0,0,0,0,0,0,8,0,0,0,0,0,0,0,0,8,8,8,8,8,8,0,8,0,8,8,13,14,14,8,46,46]} 1. e4 {[%emt 0:00:03]} Nf6 {[%emt 0:00:02]} 2. e5 {[%emt 0:00:09]} Nd5 {[%emt 0:00:02]} 3. g3 {[%emt 0:00:28]} d6 {[%emt 0:00:02]} 4. exd6 {[%emt 0:00:13]} cxd6 {[%emt 0:00:03]} 5. Bg2 {[%emt 0:00:02]} Nb6 {[%emt 0:00:01]} 6. d4 {[%emt 0:00:06]} g6 {[%emt 0:00:03]} 7. Nf3 {[%emt 0:00:22]} Bg7 {[%emt 0:00:02]} 8. O-O {[%emt 0:00:03] B04: Alekhine's Defence: 4 Nf3.} Nc6 {[%emt 0:00:01] [#]} 9. a4 $146 {[%emt 0:00:43]} ({Predecessor:} 9. c3 O-O 10. Re1 e5 11. Na3 Be6 12. Nc2 f5 13. Ng5 Bc8 14. d5 Ne7 15. f4 {0-1 (39) Schneider,D (1941)-Herzenstein,G (1915) Burg Stargard 2002}) 9... Bg4 {[%emt 0:00:11]} 10. c3 $1 {[%emt 0:00:24]} d5 {[%emt 0:00:07]} 11. a5 {[%emt 0:00:33]} Nc4 {[%emt 0:00:03]} 12. a6 {[%emt 0:00:11]} bxa6 {[%emt 0:00:07]} 13. Rxa6 {[%emt 0:00:23]} Qc8 {[%emt 0:00:12]} 14. Ra2 {[%emt 0:00:34]} O-O {[%emt 0:00:05]} 15. Bf4 {[%emt 0:00:39]} h6 {[%emt 0:00:25]} 16. b3 {[%emt 0:00:07]} Nb6 {[%emt 0:00:05]} 17. Qc1 {[%emt 0:00:40]} (17. Qd2 $5 {[%cal Rf4h6]}) 17... g5 {[%emt 0:00:11]} 18. Be3 {[%emt 0:00:01][%cal Of3e5]} Qf5 {[%emt 0:00:11] Against Ne5} 19. Nbd2 {[%emt 0:00:13]} Rac8 {[%emt 0:00:14]} 20. Qb1 {[%emt 0:00:06]} Qf6 {[%emt 0:00:25]} (20... a5 $1 $11 {remains equal.}) 21. Rc1 {[%emt 0:00:08]} e6 {[%emt 0:00:04]} 22. Qb2 {[%emt 0:00:25]} ({Better is} 22. h4 $16) 22... Rb8 {[%emt 0:00:29]} (22... Qe7 $11 {keeps the balance.}) 23. Qa1 {[%emt 0:00:14]} (23. Ne5 $16 Nxe5 24. dxe5) 23... Rfc8 {[%emt 0:00:04]} (23... Qd8 $14) 24. b4 {[%emt 0:00:08][%cal Bb3b4,Bb4b5][%mdl 32]} Nd7 {[%emt 0:00:27]} 25. Ne1 {[%emt 0:00:10]} ({White should play} 25. h3 $16 Bxf3 26. Nxf3) 25... Bf5 {[%emt 0:00:12] [#]} (25... e5 $14 {is superior.}) 26. Bf1 $1 $16 {[%emt 0:00:03]} Qe7 {[%emt 0:00:04]} (26... Qd8 $16) 27. b5 $18 {[%emt 0:00:03]} Nd8 {[%emt 0:00:08]} 28. Rxa7 {[%emt 0:00:03]} Qd6 {[%emt 0:00:03]} (28... Rb7 $16 29. Nd3 Bf8) 29. Qa6 $2 {[%emt 0:00:08]} (29. c4 $18 {is more deadly.}) 29... Nb6 {[%emt 0:00:20]} (29... Qxa6 $16 {might work better.} 30. Rxa6 (30. bxa6 e5 $16) 30... e5) 30. Qa3 {[%emt 0:00:10]} (30. c4 $18 {Strongly threatening c5.} dxc4 31. Nxc4 Nxc4 32. Rxc4 Qxa6 33. Rxa6) 30... Qxa3 $14 {[%emt 0:00:09]} 31. Rxa3 {[%emt 0:00:02]} Bf8 {[%emt 0:00:01] Inhibits h4.} 32. Ra6 {[%emt 0:00:01]} Nc4 {[%emt 0:00:14]} 33. Nxc4 {[%emt 0:00:26]} dxc4 {[%emt 0:00:01]} 34. b6 {[%emt 0:00:01]} Rc6 {[%emt 0:00:06]} 35. d5 {[%emt 0:00:02]} exd5 {[%emt 0:00:03]} 36. Nf3 {[%emt 0:00:10] Threatens to win with Nd4.} Bg7 {[%emt 0:00:07]} 37. Nd4 {[%emt 0:00:04]} Bxd4 {[%emt 0:00:06]} 38. Bxd4 {[%emt 0:00:01]} Ne6 {[%emt 0:00:02]} 39. Be3 $36 {[%emt 0:00:01][%mdl 2048] Keeping Black busy.} Nc5 {[%emt 0:00:21]} 40. Ra5 {[%emt 0:01:24]} Nb3 {[%emt 0:00:12]} 41. Rxd5 {[%emt 0:00:02]} Be6 {[%emt 0:00:16]} 42. Rcd1 {[%emt 0:00:06]} Bxd5 {[%emt 0:00:48]} 43. Rxd5 {[%emt 0:00:01]} Kf8 {[%emt 0:00:30] [#]} (43... Na1 $16 {is a better defense.} 44. Rd7 Nc2) 44. Rb5 $1 $18 {[%emt 0:00:01]} Ke7 {[%emt 0:00:16]} 45. b7 {[%emt 0:00:11] Black must now prevent Ba7.} Ra6 {[%emt 0:00:15] Prevents Ba7.} 46. Bxc4 {[%emt 0:00:12]} Na5 {[%emt 0:00:15]} 47. Bd5 {[%emt 0:00:44]} (47. Bf1 $18) 47... Kd7 {[%emt 0:00:07]} 48. h4 {[%emt 0:00:22]} ({Don't take} 48. Bxf7 $6 Rxb7 $14) 48... f6 {[%emt 0:00:09]} 49. hxg5 {[%emt 0:00:25]} hxg5 {[%emt 0:00:04]} 50. f4 {[%emt 0:00:01]} Kc7 {[%emt 0:00:13]} 51. fxg5 {[%emt 0:00:01]} fxg5 {[%emt 0:00:01][%cal Ra5b7]} 52. Bxg5 {[%emt 0:00:04] A strong pair of Bishops.} (52. Bf3 $16 Nxb7 53. Rxg5 Ra1+ 54. Kf2 Ra2+ 55. Kg1 Ra1+ 56. Kg2 Ra2+ 57. Kg1 Ra1+) 52... Nxb7 $11 {[%emt 0:00:08]} 53. Bf4+ {[%emt 0:00:05]} Nd6 {[%emt 0:00:01]} 54. Rxb8 {[%emt 0:00:50]} Kxb8 {[%emt 0:00:03][%mdl 4096] Endgame KRN-KB} 55. c4 {[%emt 0:00:03] c5 is the strong threat.} Kc8 {[%emt 0:00:15]} 56. Kf2 {[%emt 0:00:03]} Nf5 {[%emt 0:00:09]} 57. Kf3 {[%emt 0:00:06]} Kd7 {[%emt 0:00:08]} 58. Ke4 {[%emt 0:00:06]} Nd6+ {[%emt 0:00:18]} 59. Kd4 {[%emt 0:00:01]} Ra3 {[%emt 0:00:11]} 60. g4 {[%emt 0:00:04]} Ra1 {[%emt 0:00:09]} 61. g5 {[%emt 0:00:24]} Rg1 {[%emt 0:00:12]} 62. Kc5 {[%emt 0:00:15]} Nf5 {[%emt 0:00:15]} 63. Bc6+ {[%emt 0:00:27]} Ke7 {[%emt 0:00:06]} 64. Bd2 {[%emt 0:00:33]} Kf7 {[%emt 0:00:32]} 65. Be4 {[%emt 0:00:07]} Ne7 {[%emt 0:00:26]} 66. Kd4 {[%emt 0:00:08]} Ke6 {[%emt 0:00:05]} 67. Be3 {[%emt 0:00:09]} Rg4 {[%emt 0:00:25]} 68. Kd3 {[%emt 0:00:02]} Ke5 {[%emt 0:00:38]} 69. Bd4+ {[%emt 0:00:01]} Ke6 {[%emt 0:00:03]} 70. Bf6 {[%emt 0:00:03]} Nc8 {[%emt 0:00:17]} 71. Bf3 {[%emt 0:00:14]} Rg3 {[%emt 0:00:03]} 72. Ke2 {[%emt 0:00:05] Hoping for Kf2.} Nd6 {[%emt 0:00:17]} 73. Bd5+ {[%emt 0:00:04]} (73. Kf2 {simplifies} Rxf3+ 74. Kxf3 Nxc4 75. Kg4) 73... Kd7 {[%emt 0:00:12]} 74. c5 {[%emt 0:00:17]} Nf5 {[%emt 0:00:02]} 75. Bf3 {[%emt 0:00:07]} Rg1 {[%emt 0:00:19]} 76. c6+ {[%emt 0:00:07]} Kd6 {[%emt 0:00:06]} 77. Kf2 {[%emt 0:00:05]} Nh4 {[%emt 0:00:32]} 78. Be4 {[%emt 0:00:15][%mdl 32768] Black defended with fortune.   Weighted Error Value: White=0.22 (precise) /Black=0.25 (precise) . Loss on time!?} 0-1

[Event "Romanian Rapid Open 2022"]
[Site "Sebes"]
[Date "2022.12.02"]
[Round "4.35"]
[White "Sfarlog, Tudor-Vlad"]
[Black "Calugareanu, Ioana-Denisa"]
[Result "1-0"]
[ECO "D34"]
[WhiteElo "2283"]
[BlackElo "1396"]
[Annotator "TA"]
[PlyCount "105"]
[EventDate "2022.12.02"]
[EventType "rapid"]
[EventCountry "ROU"]
[SourceTitle "playchess.com"]
[Source "ChessBase"]
[SourceQuality "1"]
[TimeControl "600+5"]

{[%evp 28,105,10,4,8,9,20,19,104,86,92,94,85,0,0,0,58,0,19,11,17,10,13,15,18,0,58,11,151,146,141,140,142,134,169,172,174,127,127,117,166,162,170,166,168,150,154,150,216,233,215,176,201,175,158,154,12827,12827,12815,12819,29994,12821,29993,12664,12561,7024,12394,3001,12841,12840,12840,12840,12842,12843,12843,12843,29985,29986,12847,12847]} 1. Nf3 {[%emt 0:00:02]} e6 {[%emt 0:00:03]} 2. c4 {[%emt 0:00:01]} Nf6 {[%emt 0:00:01]} 3. g3 {[%emt 0:00:01]} d5 {[%emt 0:00:02]} 4. Bg2 {[%emt 0:00:02]} Be7 {[%emt 0:00:06]} 5. O-O {[%emt 0:00:03]} O-O {[%emt 0:00:01]} 6. d4 {[%emt 0:00:00]} c5 {[%emt 0:00:02]} 7. cxd5 {[%emt 0:00:03]} exd5 {[%emt 0:00:07]} 8. Nc3 {[%emt 0:00:01]} Nc6 {[%emt 0:00:10]} 9. dxc5 {[%emt 0:00:15]} Bxc5 {[%emt 0:00:02]} 10. Bg5 {[%emt 0:00:02]} d4 {[%emt 0:01:15]} 11. Bxf6 {[%emt 0:01:17]} Qxf6 {[%emt 0:00:06]} 12. Ne4 {[%emt 0:00:01]} Qe7 {[%emt 0:00:37]} 13. Nxc5 {[%emt 0:00:02]} Qxc5 {[%emt 0:00:01]} 14. Rc1 {[%emt 0:00:10]} Qb6 {[%emt 0:00:01]} 15. Qd2 {[%emt 0:00:01]} Be6 {[%emt 0:00:26] D34: Tarrasch Defence: 6 g3 Nf6 7 Bg2 Be7.} 16. b3 {[%emt 0:00:06]} Rfd8 {[%emt 0:00:03]} 17. Rfd1 {[%emt 0:00:01]} (17. Ng5 {is interesting.} Bd5 18. Qf4 Qa5 19. Qf5) 17... Rac8 {[%emt 0:00:07]} (17... h6 $11) 18. Ng5 $16 {[%emt 0:00:23] [#]} Bf5 $146 {[%emt 0:01:41]} ({Predecessor:} 18... Bd5 19. Bxd5 Rxd5 20. Qf4 Qc7 21. Qxc7 Rxc7 22. Nf3 Rcd7 23. Ne1 g5 24. Nd3 Re7 {½-½ (59) Koch,W (2310)-Heppekausen,J Germany 1995}) 19. Qf4 {[%emt 0:00:30] Prevents h6.} Bg6 {[%emt 0:00:43]} 20. Bh3 {[%emt 0:00:15] Inhibits h6. White is much more active.} (20. Ne4 $16) 20... Rc7 $11 {[%emt 0:01:09][%cal Bc8c7,Bc7d7,Bd7d5][%mdl 32]} 21. Bf5 {[%emt 0:00:06]} h6 {[%emt 0:01:30] [#]} ({Black should try} 21... Bxf5 $1 $11 22. Qxf5 g6) 22. Nf3 {[%emt 0:00:05]} (22. Ne6 $1 $14 fxe6 23. Bxg6) 22... Bxf5 23. Qxf5 {[%emt 0:00:02]} Rcd7 {[%emt 0:00:07]} 24. h4 {[%emt 0:00:22]} Rd5 {[%emt 0:00:26]} 25. Qe4 {[%emt 0:00:07]} Qa6 {[%emt 0:01:18]} 26. Rd2 {[%emt 0:00:01]} d3 {[%emt 0:00:42]} ({Black should play} 26... Qa3 $11 27. Ra1 R5d6) 27. Rc3 {[%emt 0:01:11]} (27. Rc4 $14) 27... f5 {[%emt 0:01:20]} (27... Nd4 $11 {keeps the balance.} 28. Nxd4 Rxd4) 28. Qe6+ $16 {[%emt 0:07:15]} Kh8 29. Rcxd3 {[%emt 0:00:00]} Rxd3 {[%emt 0:00:01]} 30. exd3 {[%emt 0:00:00]} Rxd3 {[%emt 0:00:03]} 31. Qc8+ {[%emt 0:00:00]} ({Resist} 31. Qxf5 Rxd2 32. Nxd2 Qxa2 33. Qc8+ Kh7 $16) 31... Nd8 {[%emt 0:00:09][%cal Of5f4]} 32. Qxf5 {[%emt 0:00:00]} (32. Rxd3 $18 Qxd3 33. Ne5 Qd1+ 34. Kh2) 32... Rxd2 {[%emt 0:00:04]} 33. Nxd2 $18 {[%emt 0:00:00][%mdl 4096] Endgame Hoping for Qf8+. KQN-KQN} Qd6 {[%emt 0:00:03] Inhibits Qf8+.} (33... Nc6 $16 {is a better defense.} 34. a4 Qb6 35. Qf8+ Kh7) 34. Nc4 {[%emt 0:00:00]} Qd1+ {[%emt 0:00:02]} 35. Kg2 {[%emt 0:00:00]} b6 {[%emt 0:00:03]} 36. Ne5 {[%emt 0:00:00]} Qd5+ {[%emt 0:00:03]} 37. Kh2 {[%emt 0:00:00]} Qe6 {[%emt 0:00:26]} (37... Kg8 $16 38. Kg1 b5) 38. Ng6+ {[%emt 0:00:50]} Kg8 39. Qf8+ {[%emt 0:00:00]} Kh7 {[%emt 0:00:01]} 40. Nf4 $36 {[%emt 0:00:00][%mdl 2048] White has strong initiative.} Qd7 {[%emt 0:00:17]} 41. h5 {[%emt 0:00:00] And now Ng6 would win.} Qd2 $2 {[%emt 0:00:03] A mistake that costs the game.} (41... Nf7 $16 42. Qa8 Ng5) 42. Ng6 {[%emt 0:00:00][%csl Gg6][%cal Rf8h8]} Nf7 {[%emt 0:00:06] Inhibits Qh8+.} 43. Qxf7 {[%emt 0:00:00] White threatens Qf8 and mate.} Qg5 {[%emt 0:00:02]} 44. Nf4 {[%emt 0:00:00]} (44. Nf8+ $142 Kh8 45. Qe8 Qxh5+ 46. Qxh5 a6 47. Qf7 a5 48. Ne6 Kh7 49. Qxg7#) 44... Qc5 {[%emt 0:00:03] [#]} 45. Qxg7+ $3 {[%emt 0:00:00][%mdl 512]} Kxg7 {[%emt 0:00:03]} 46. Ne6+ {[%emt 0:00:00]} Kf6 {[%emt 0:00:01]} 47. Nxc5 {[%emt 0:00:00]} bxc5 {[%emt 0:00:01] KP-KP} 48. f4 {[%emt 0:00:00][%cal Bf2f4,Bf4f5,Bf5f6][%mdl 32]} Kf5 {[%emt 0:00:01]} 49. Kh3 {[%emt 0:00:00]} a5 {[%emt 0:00:01]} 50. a4 {[%emt 0:00:00]} Ke4 {[%emt 0:00:03]} 51. Kg4 {[%emt 0:00:00]} Kd3 {[%emt 0:00:03]} 52. f5 {[%emt 0:00:00]} Kc3 {[%emt 0:00:02]} 53. f6 {[%emt 0:00:00] Weighted Error Value: White=0.15 (very precise) /Black=0.61} 1-0

[Event "Romanian Rapid Open 2022"]
[Site "Sebes"]
[Date "2022.12.02"]
[Round "4.36"]
[White "Stefan, Iulia-Cristiana"]
[Black "Tampea, Radu"]
[Result "0-1"]
[ECO "B25"]
[WhiteElo "1662"]
[BlackElo "2110"]
[Annotator "TA"]
[PlyCount "108"]
[EventDate "2022.12.02"]
[EventType "rapid"]
[EventCountry "ROU"]
[SourceTitle "playchess.com"]
[Source "ChessBase"]
[SourceQuality "1"]
[TimeControl "600+5"]

{[%evp 10,108,8,-26,0,-12,8,18,28,-69,-21,0,-8,-24,-22,-76,-79,-74,-61,-93,-54,-81,-66,-112,-42,-65,-38,-170,-151,-151,-148,-147,-159,-216,-160,-159,-162,-151,-165,-200,-126,-257,-267,-289,-285,-275,-240,-302,-197,-279,-254,-266,-262,-250,-242,-400,-408,-425,-416,-395,-374,-457,-457,-567,-541,-552,-534,-418,-378,-585,-575,-608,-589,-623,-627,-633,-616,-608,-611,-792,-608,-563,-558,-1018,-969,-29978,-29980,-29980,-29981,-29985,-29986,-29986,-29985,-29986,-29986,-29986,-29987,-29987,-29980,-29991,-29992]} 1. e4 {[%emt 0:00:01]} c5 {[%emt 0:00:01]} 2. Nc3 {[%emt 0:00:01]} Nc6 {[%emt 0:00:01]} 3. g3 {[%emt 0:00:02]} g6 {[%emt 0:00:01]} 4. Bg2 {[%emt 0:00:01]} Bg7 {[%emt 0:00:01]} 5. d3 {[%emt 0:00:01]} d6 {[%emt 0:00:02]} 6. Nh3 {[%emt 0:00:03]} h6 {[%emt 0:00:02] B25: Closed Sicilian: 3 g3, lines without early Be3.} 7. O-O {[%emt 0:00:04]} e5 {[%emt 0:00:07]} 8. f4 {[%emt 0:00:11]} Nge7 {[%emt 0:00:01] The position is equal.} 9. f5 {[%emt 0:00:16]} (9. Be3 $11) 9... gxf5 $15 {[%emt 0:00:13]} 10. Qh5 $1 {[%emt 0:00:33][%cal Re4f5]} Nd4 {[%emt 0:00:22]} 11. Rf2 {[%emt 0:01:14]} Be6 {[%emt 0:00:36] [#]} 12. Nd1 $146 {[%emt 0:00:30]} (12. Be3 $11) ({Predecessor:} 12. Be3 Ng8 13. Bxd4 cxd4 14. exf5 Nf6 15. Qe2 Bd7 16. Nd5 h5 17. Nhf4 h4 18. g4 {½-½ (61) Starostits,I (2480)-Krasenkow,M (2620) Germany 2008}) 12... fxe4 $17 {[%emt 0:00:09]} 13. dxe4 {[%emt 0:00:06]} Qd7 {[%emt 0:00:05][%cal Od4c2] [#] And now ...Nxc2! would win. Black is more active.} 14. c3 {[%emt 0:00:09]} Ndc6 {[%emt 0:00:02]} (14... Nc2 {is more complex.} 15. Rb1 Ne1 16. Bf1 c4) 15. Ne3 {[%emt 0:00:15]} O-O-O {[%emt 0:00:02]} 16. Kh1 {[%emt 0:02:24]} (16. Nf5 $15) 16... Rdf8 {[%emt 0:00:05]} (16... Kb8 $17 17. Nf5 Bxf5 18. exf5 f6) 17. Nf5 $1 $15 {[%emt 0:00:10]} f6 {[%emt 0:03:36]} 18. Ng1 {[%emt 0:00:48]} (18. Nxg7 $2 {is the wrong capture.} Bg4 19. Qh4 Ng6 $19) (18. Be3 $1 $15) 18... Nxf5 $19 {[%emt 0:00:13]} 19. exf5 {[%emt 0:00:02]} Bf7 $36 {[%emt 0:00:00][%mdl 2048] White is under strong pressure.} 20. Qe2 {[%emt 0:00:07]} h5 {[%emt 0:00:09]} 21. h3 {[%emt 0:00:04]} (21. Be3 $17) 21... Bh6 {[%emt 0:00:06]} 22. Bxh6 Rxh6 {[%emt 0:00:00]} 23. Rd1 {[%emt 0:00:07]} Rhh8 {[%emt 0:00:06][%cal Bh6h8,Bh8g8,Bg8g5][%mdl 32]} 24. Qd2 {[%emt 0:00:04]} Kc7 {[%emt 0:00:12]} ({Stronger than} 24... Bxa2 25. Qxd6 Qxd6 26. Rxd6) 25. Bd5 {[%emt 0:00:01]} (25. b3 $17) 25... Rhg8 {[%emt 0:00:12]} 26. Ne2 {[%emt 0:00:02]} Bxd5+ {[%emt 0:00:10]} 27. Qxd5 {[%emt 0:00:01]} Ne7 {[%emt 0:00:01][%csl LRd5,LRf5] Inhibits c4.} 28. Qf3 {[%emt 0:00:14]} Qc6 {[%emt 0:00:13]} 29. Qxc6+ {[%emt 0:00:02]} (29. c4 {was worth a try.}) 29... Kxc6 {[%emt 0:00:01]} ({Not} 29... Nxc6 30. c4 $19) 30. c4 {[%emt 0:00:06]} Rg5 {[%emt 0:00:08]} 31. Rdf1 {[%emt 0:00:02]} a6 {[%emt 0:00:13]} 32. Nc3 $2 {[%emt 0:00:02]} (32. a4 {was called for.}) 32... Rxg3 {[%emt 0:00:03]} 33. Kh2 {[%emt 0:00:05]} Rd3 {[%emt 0:00:18]} 34. Rg1 {[%emt 0:00:07]} Rg8 {[%emt 0:00:06] Prevents Rg7.} 35. Rxg8 {[%emt 0:00:06]} Nxg8 {[%emt 0:00:01][%mdl 4096] Endgame KRN-KRN} 36. Nd5 {[%emt 0:00:03]} b5 {[%emt 0:01:06]} 37. b3 {[%emt 0:00:03]} bxc4 {[%emt 0:00:02]} 38. bxc4 {[%emt 0:00:01]} Rd4 {[%emt 0:00:03]} 39. Ne3 {[%emt 0:00:07]} (39. Rc2 {is the only way for White.}) 39... Ne7 {[%emt 0:00:09]} 40. Rg2 {[%emt 0:00:07]} Re4 {[%emt 0:00:01]} 41. Rg3 {[%emt 0:00:11]} h4 {[%emt 0:00:20]} 42. Rf3 {[%emt 0:00:05]} Rd4 {[%emt 0:00:20] [#] White must now prevent ...Rd3.} 43. Rf2 {[%emt 0:00:03]} Rf4 {[%emt 0:00:46]} 44. Kg2 {[%emt 0:00:08]} Rxf2+ {[%emt 0:00:26]} 45. Kxf2 {[%emt 0:00:00] KN-KN} d5 {Strongly threatening ...d4.} 46. cxd5+ Nxd5 {[%emt 0:00:01]} 47. Ng4 {[%emt 0:00:10]} c4 {[%emt 0:00:02][%cal Bc5c4,Bc4c3][%mdl 32] Black mates.} 48. Kf3 {[%emt 0:00:04]} c3 {[%emt 0:00:09]} 49. Ke2 {[%emt 0:00:01]} e4 {[%emt 0:00:32][%cal Be5e4,Be4e3][%mdl 32]} 50. a3 {[%emt 0:00:05]} Kd6 {[%emt 0:00:11]} 51. Ke1 {[%emt 0:00:03]} a5 {[%emt 0:00:32][%cal Ba6a5,Ba5a4][%mdl 32]} 52. Ke2 {[%emt 0:00:02]} a4 {[%emt 0:00:01]} 53. Ke1 {[%emt 0:00:01]} e3 {[%emt 0:00:00]} 54. Ke2 {[%emt 0:00:02]} c2 {[%emt 0:00:02] Weighted Error Value: White=0.41/Black=0.16 (very precise)} 0-1

[Event "Romanian Rapid Open 2022"]
[Site "Sebes"]
[Date "2022.12.02"]
[Round "4.37"]
[White "Apostu, Rares-Stefan"]
[Black "Negrean, Andrei"]
[Result "0-1"]
[ECO "B48"]
[WhiteElo "1331"]
[BlackElo "1991"]
[Annotator "TA"]
[PlyCount "138"]
[EventDate "2022.12.02"]
[EventType "rapid"]
[EventCountry "ROU"]
[SourceTitle "playchess.com"]
[Source "ChessBase"]
[SourceQuality "1"]
[TimeControl "600+5"]

{[%evp 20,137,31,0,12,0,2,-2,17,-22,-25,-22,-15,-38,-47,-48,-45,-79,-48,-82,-80,-77,-78,-106,-110,-102,-95,-195,-187,-246,-250,-260,-247,-260,-214,-239,-239,-333,-319,-330,-326,-408,-336,-558,-560,-535,-468,-460,-424,-444,-444,-685,-678,-671,-650,-624,-611,-676,-668,-800,-797,-795,-787,-781,-737,-648,-613,-798,-798,-785,-786,-746,-750,-761,-733,-1039,-967,-1797,-1867,-1016,-800,-666,-643,-6597,-6287,-5466,-5431,-6696,-5941,-29985,-29986,-29987,-29988,-29991,-29992,-29993,-29994,-29994,-29988,-29988,-29986,-29990,-29990,-29990,-29987,-29987,-29988,-29988,-29989,-29989,-29990,-29995,-29992,-29992,-29993,-29993,-29994,-29998,-29999,-29999]} 1. e4 {[%emt 0:10:10]} c5 2. Nf3 {[%emt 0:00:00]} Nc6 {[%emt 0:00:03]} 3. d4 {[%emt 0:00:00]} cxd4 {[%emt 0:00:01]} 4. Nxd4 {[%emt 0:00:00]} Qc7 {[%emt 0:00:01]} 5. Nc3 {[%emt 0:00:00]} e6 {[%emt 0:00:02]} 6. Be3 {[%emt 0:00:00]} a6 {[%emt 0:00:02]} 7. Bd3 {[%emt 0:00:00]} Nf6 {[%emt 0:00:09]} 8. O-O {[%emt 0:00:00]} Nxd4 {[%emt 0:00:12]} 9. Bxd4 {[%emt 0:00:00]} Bc5 {[%emt 0:00:03]} 10. Bxc5 {[%emt 0:00:00]} Qxc5 {[%emt 0:00:01]} 11. Qe2 {[%emt 0:00:00] [#] And now e5 would win.} d6 {[%emt 0:00:13] B48: Sicilian: Taimanov: 5 Nc3 Qc7 6 Be3 a6 without Be2.} 12. Rad1 {[%emt 0:00:00]} b5 {[%emt 0:00:34] [#]} 13. Rfe1 $146 {[%emt 0:00:00]} ({Predecessor:} 13. Kh1 Bb7 14. a3 h5 15. h3 h4 16. Rfe1 Nh5 17. Qd2 O-O-O 18. b4 Qe5 19. a4 Bc6 20. Ra1 Nf4 21. axb5 axb5 22. Nxb5 Qg5 23. Bf1 Bxb5 24. Qc3+ Kb8 25. Ra5 {1-0 (25) Tirard,H (2395)-Hegeler,F (2285) Hamburg 1996}) 13... e5 {[%emt 0:00:11] The position is equal.} 14. Nd5 {[%emt 0:00:00]} Nxd5 {[%emt 0:00:33]} 15. exd5 {[%emt 0:00:00]} O-O {[%emt 0:00:24]} 16. Kh1 {[%emt 0:00:00]} f5 {[%emt 0:00:26]} 17. f3 {[%emt 0:00:00] Inhibits e4.} Bd7 {[%emt 0:02:25]} 18. Qe3 {[%emt 0:00:00]} Rac8 {[%emt 0:00:38][%cal Ba8c8,Bc8c5,Bc5c3][%mdl 32]} 19. c3 {[%emt 0:00:00]} Qxe3 {[%emt 0:02:03]} 20. Rxe3 {[%emt 0:00:00]} Rc5 {[%emt 0:00:15]} 21. Bc2 {[%emt 0:00:00]} b4 {[%emt 0:00:19]} 22. Bb3 {[%emt 0:00:00]} bxc3 {[%emt 0:00:04]} 23. bxc3 {[%emt 0:00:00]} (23. Rxc3 $17 Rxc3 24. bxc3) 23... f4 {[%emt 0:00:07]} 24. Red3 {[%emt 0:00:00]} (24. Re2 {was called for.}) 24... Bf5 $19 {[%emt 0:00:05]} 25. R3d2 {[%emt 0:00:00]} Rxc3 {[%emt 0:00:03]} 26. Kg1 {[%emt 0:00:00]} Rfc8 {[%emt 0:00:06]} 27. Kf2 {[%emt 0:00:00]} Kf7 {[%emt 0:00:04]} 28. Ke2 {[%emt 0:00:09]} g5 {[%emt 0:00:11][%cal Bg7g5,Bg5g4,Bg4f3][%mdl 32]} 29. Kf2 {[%emt 0:00:06]} h5 {[%emt 0:00:11]} 30. g3 {[%emt 0:00:06]} Rg8 {[%emt 0:01:03]} 31. Re2 $2 {[%emt 0:00:34]} (31. Rf1) 31... g4 {[%emt 0:00:10]} 32. gxf4 {[%emt 0:00:40]} gxf3 {[%emt 0:00:13] [#] ( -> ...Rg2+)} 33. Re3 {[%emt 0:00:02]} Rxe3 {[%emt 0:00:49]} 34. Kxe3 {[%emt 0:00:03][%mdl 4096] Endgame KRB-KRB} e4 {[%emt 0:00:08]} 35. Bc2 {[%emt 0:00:21]} (35. Bc4 $142 Rc8 36. Rd4) 35... Rg2 {[%emt 0:00:19][%csl LRc2,LRh2]} 36. Bxe4 {[%emt 0:00:07]} Re2+ {[%emt 0:00:03]} 37. Kxf3 {[%emt 0:00:06]} Rxe4 {[%emt 0:00:12] KRB-KR} 38. Rc1 {[%emt 0:00:04]} Ra4 {[%emt 0:00:14]} 39. Rc6 {[%emt 0:00:13]} Ke7 {[%emt 0:00:05]} 40. Rc7+ {[%emt 0:00:01]} Kf6 {[%emt 0:00:27]} 41. Rc6 {[%emt 0:00:15]} Ra3+ {[%emt 0:00:00]} 42. Kf2 {[%emt 0:00:05]} Rxa2+ {[%emt 0:00:02]} 43. Kg3 {[%emt 0:00:04]} Ra3+ {[%emt 0:00:05]} 44. Kf2 {[%emt 0:00:09]} Ke7 {[%emt 0:00:15]} 45. Rc7+ {[%emt 0:00:02]} Ke8 {[%emt 0:00:09]} 46. Rc6 {[%emt 0:00:07]} Kd7 {[%emt 0:00:02]} 47. Rc4 {[%emt 0:00:06]} Rd3 {[%emt 0:00:07]} 48. Ra4 {[%emt 0:00:06] Inhibits a5.} Rxd5 {[%emt 0:00:02]} 49. Rxa6 {[%emt 0:00:03]} Rd2+ {[%emt 0:00:02]} 50. Kg3 {[%emt 0:00:02]} Rd3+ {[%emt 0:00:01]} 51. Kf2 {[%emt 0:00:04]} h4 {[%emt 0:00:02][%cal Bh5h4,Bh4h3][%mdl 32]} 52. Ra7+ {[%emt 0:00:03]} Ke6 {[%emt 0:00:01] aiming for ...Rd2+.} 53. Ra8 {[%emt 0:00:04]} Rd2+ {[%emt 0:00:02]} 54. Kg1 {[%emt 0:00:03]} h3 {[%emt 0:00:02] Black mates.} 55. Re8+ {[%emt 0:00:07]} Kd5 {[%emt 0:00:05]} 56. Rf8 {[%emt 0:00:05]} Ke4 {[%emt 0:00:02]} 57. Re8+ {[%emt 0:00:04]} Kf3 {[%emt 0:00:04]} 58. Re1 {[%emt 0:00:04]} Kxf4 {[%emt 0:00:05]} 59. Rf1+ {[%emt 0:00:01]} Kg4 {[%emt 0:00:01]} 60. Re1 {[%emt 0:00:03]} d5 {[%emt 0:00:04]} 61. Rf1 {[%emt 0:00:02]} Be4 {[%emt 0:00:04]} 62. Rf2 {[%emt 0:00:26]} Rxf2 {[%emt 0:00:07]} 63. Kxf2 {[%emt 0:00:01] KB-KP} d4 {[%emt 0:00:01]} 64. Ke2 {[%emt 0:00:02]} Kf4 {[%emt 0:00:02]} 65. Kf2 {[%emt 0:00:03]} d3 {[%emt 0:00:01]} 66. Ke1 {[%emt 0:00:02]} Ke3 {[%emt 0:00:02]} 67. Kd1 {[%emt 0:00:02]} Bf3+ {[%emt 0:00:02]} 68. Ke1 {[%emt 0:00:01]} d2+ {[%emt 0:00:01]} 69. Kf1 {[%emt 0:00:01]} d1=Q# {[%emt 0:00:02] White did not feel at home in the position after the opening.   Weighted Error Value: White=0.51/Black=0.09 (flawless)} 0-1